{"text_format":"1","workbook":"xlsx","n_sheets":14,"sheets":["Scheda A","PAGINA INIZIALE","LEGALE RAPPRESENTANTE","ANAGRAFICA AZ.LE","QUADRO ECONOMICO","ELEGGIBILITA' DELLA SPESA","DNSH-TAGGING-INDICATORI","Elenchi","TIPOLOGIA DI INTERVENTO-MACCHIN","CRONOPROGRAMMA FISICO-FIN","COPERTURA FINANZIARIA","CRITERI DI SELEZIONE ART 19","SEZ INFO- TAB SEZIONE I DEL DM","Problemi tecnici Windows 11"],"not_rendered":{"charts":0,"images":2,"macros":1,"external_links":0,"defined_names":16,"comments":0,"pivot_tables":0},"unopened":[],"bounds":{"document_bytes":16777216,"sheet_cells":100000,"rows_first":2000,"rows_last":500,"rows_between":2000,"halvings":0,"cell_chars":16384,"cell_head_chars":4096},"cells_cut":0,"cells_raw":0,"read":"whole","date_system":"1900"}

{"sheet":"Scheda A","index":0,"n_rows":16,"n_cols":7,"rows_kept":16,"cut":false,"hidden":true,"merged":[[0,0,0,2],[14,0,14,3],[15,0,15,3]]}
["Riepilogo dei macchinari ammessi al finanziamento ",null,null,null,null,"Legenda ","Tipologia di intervento "]
[" ","Tipologie di macchinari ammessi al finanziamento ","Spiegazione della richiesta in base al principio DNSH ","Tipologia intervento ",null,"a ","Sostituzione di macchinari "]
[1,"Sostituzione di frangitori a martelli, con frangitori a dischi e a coltelli, denocciolatori e frangitori che operano una frangitura \"differenziata\" sulle parti costitutive del frutto. Inoltre, viene inclusa la sostituzione di gramolatrici tradizionali e silos ","Miglioramento della qualità dell'olio vergine ed extravergine di oliva dovuto all'aumento della concentrazione in composti fenolici ad azione antiossidante; Nota 1*. ","A ",null,"b ","Acquisto di nuovi macchinari per il miglioramento della produzione attraverso la riduzione di consumi e di sprechi "]
[2,"Sostituzione/aggiornamento tecnologico di silos tradizionali con sistemi di stoccaggio degli oli in atmosfera controllata mediante gas inerti. ","Riduzione dei processi di invecchiamento precoce del prodotto evitando l'ossidazione dovuta alla presenza di ossigeno in fase di stoccaggio. Nota 1*. ","A ",null,"c ","Interventi edili esclusivamente funzionali all'installazione dei nuovi macchinari "]
[3,"Sostituzione di decanter senza separatore verticale con decanter accoppiato al separatore verticale (incluso il separatore verticale). ","Produzione di olio più pulito in termini di acqua di vegetazione, residui solidi e mucillaginosi. Riduzione dei tempi di filtrazione e della quantità di materiale filtrante da smaltire. Nota 1**. ","A "]
[4,"Sostituzione di sistemi di filtrazione con sistemi di filtrazione più efficienti, ovvero con sistemi che a parità di condizioni di prodotto iniziale e finale, necessitano di minore quantità di materiale filtrante. ","Riduzione della quantità di materiale filtrante da smaltire. Nota 1*. ","A "]
[5,"Sostituzione di gramolatrici tradizionali con gramolatrici continue/confinate o gramolatrici operanti in alto vuoto. ","Riduzione della quantità di ossigeno presente con corrispondente aumento del contenuto fenolico degli oli vergini ed extravergini di oliva senza modificare i composti volatili. Gramolazione della pasta di olive sotto vuoto spinto. ","A "]
[6,"Sostituzione di centrali termiche di frantoi alimentate con combustibili da fonti energetiche non rinnovabili con centrali termiche alimentate a nocciolino di sansa, destinate esclusivamente all'impianto oggetto di ammodernamento tecnologico. ","In ottica di economia circolare, produzione di calore a partire da nocciolino come fonte di energia rinnovabile. ","A "]
[7,"Sostituzione di impianti di estrazione a tre fasi con nuovi impianti a due fasi o in alternativa con impianti a tre fasi a bassa diluizione. ","Riduzione della quantità di acqua di fonte utilizzata per la diluizione in fase di estrazione, che passa da 0,5 - 0,2 mc/ton a 0,2 - 0 mc/ton di olive lavorate. Riduzione della produzione di acque di vegetazione con potere inquinante. Produzione di oli con una concentrazione maggiore di composti fenolici ad azione antiossidante. Nota 1*. ","A "]
[8,"Acquisto di tecnologie ad ultrasuoni per il trattamento delle paste di olive e di tecnologie P.E.F (Pulsed Electric Field) per il trattamento delle paste di olive. ","Aumento dell'efficienza del processo, estrazione di maggiore quantità di olio a parità di materia prima in ingresso e minore quantità di sottoprodotti in uscita. Nota 2**, Nota 1*. ","B "]
[9,"Acquisto di scambiatori di calore ad alta efficienza energetica per lo scambio termico per il termocondizionamento rapido della pasta di olive in post-frangitura. ","Aumento dell'efficienza dello scambio termico positivo e negativo, riduzione del consumo di energia utilizzata per il condizionamento delle paste effettuato con altri metodi (es. gramolatrici). Aumento della qualità del prodotto in termini di stabilità ossidativa e concentrazione di composti fenolici. Incremento della concentrazione di composti volatili caratteristici delle singole varietà, che concorrono ad aumentare l'intensità del fruttato di tipo \"verde\". Nota 1*. ","B "]
[10,"Acquisto di sistemi per la valorizzazione dei prodotti secondari mediante produzione di integratori alimentari (per l’alimentazione umana o zootecnica) da acque di vegetazione con tecnologie innovative, come la concentrazione su membrana, spray drying e liofilizzazione. ","Produzione di concentrati fenolici liquidi per la produzione di estratti fenolici stabilizzati ad azione antiossidante ed antimicrobica per utilizzo come ingrediente nell'industria alimentare e zootecnica. Abbattimento del carico inquinante delle acque di vegetazione dovuto ai composti fenolici, depurazione delle acque di vegetazione con possibilità di riutilizzo all'interno del frantoio sia come acque di processo che come acque di lavaggio. Possibilità di reimmissione dei concentrati liquidi in fase di gramolatura per incrementare il contenuto fenolico dell'olio vergine ed extravergine di oliva. Nota 1*. ","B "]
[11,"Acquisto di denocciolatori per sansa di olive. ","Recupero del nocciolino come combustibile da fonte di energia rinnovabile, preparazione delle sanse per altri utilizzi con effetto positivo sull'ambiente: utilizzo in mangimistica e produzione di biogas. ","B "]
[12,"Acquisto di sistemi di informatizzazione dell’impianto di estrazione per il controllo dei consumi energetici/kg prodotto e per la tracciabilità degli oli. ","Maggior controllo di processo, facilità nell'acquisizione di dati relativi al bilancio di massa per il conteggio di materia prima in ingresso, prodotto ottenuto e sottoprodotti in uscita. Aumento dell'efficienza dell'impianto dovuto ad una migliore logica gestionale. Minor consumo di energia dovuto alla diminuzione dei tempi morti e all'ottimizzazione del processo. ","B "]
["**Nota 1: L'aumento della stabilità ossidativa e dello shelf-life del prodotto allunga la vita dell'olio extravergine di oliva sia sfuso che confezionato diminuendo il volume di olio da destinare alla raffinazione a causa del declassamento della categoria merceologica da extravergine o vergine a lampante. Diminuzione notevole del fabbisogno di energia necessaria per condurre i processi di raffinazione per la produzione di oli raffinati di oliva. "]
["***Nota 2: L'aumento di efficienza del processo estrattivo permette una maggiore produzione di olio a parità di materie prime in ingresso. Inoltre, aumentando l'estraibilità industriale si può evitare la doppia estrazione consistente nel ripasso delle sanse vergini con evidente riduzione dei consumi energetici. L'eliminazione della doppia estrazione (produzione di olio da ripasso) comporta un notevole risparmio in termini energetici sotto forma di energia elettrica e necessità di calore per il riscaldamento delle sanse umide in fase di \"seconda\" gramolatura e successiva separazione centrifuga. Inoltre si sostituisce l'olio di ripasso (di fatto olio di sansa) con un aumento di olio extravergine o vergine di oliva e quindi di categoria merceologica superiore. "]

{"sheet":"PAGINA INIZIALE","index":1,"n_rows":19,"n_cols":2,"rows_kept":19,"cut":false,"hidden":false,"merged":[[1,0,1,1],[0,0,0,1]]}
["REGIONE ABRUZZO\nDipartimento Agricoltura\n"]
[{"$f":"'LEGALE RAPPRESENTANTE'!A1","v":"Decreto del Mipaaf n. 00413219 del 08/08/2023 - PNRR - M2C1 - INVESTIMENTO 2.3\nSottomisura \"AMMODERNAMENTO DEI MACCHINARI AGRICOLI CHE PERMETTANO L’INTRODUZIONE DI TECNICHE DI AGRICOLTURA DI PRECISIONE\"\n\nREGIONE ABRUZZO: Determina DPD 018/744 del 29/12/2023 Bando di Aiuto \"Innovazione e meccanizzazione nel settore agricolo e alimentare\", data di fine procedura 25/12/2025"}]
[]
["Indice"]
["LEGALE RAPPRESENTANTE"]
["ANAGRAFICA AZ.LE"]
["QUADRO ECONOMICO"]
["ELEGGIBILITA' DELLA SPESA"]
["DNSH-TAGGING-INDICATORI"]
["TIPOLOGIA DI INTERVENTO-MACCHIN"]
["CRONOPROGRAMMA FISICO-FIN"]
["COPERTURA FINANZIARIA"]
["ART.19 CRITERI DI SELEZIONE"]
["SEZ INFO- TAB SEZIONE I DEL DM"]
[]
[]
["IL TECNICO ABILITATO","IL LEGALE RAPPRESENTANTE"]
["(Timbro e firma digitale)","(Timbro e firma digitale)"]
["_________________________________","_________________________________"]

{"sheet":"LEGALE RAPPRESENTANTE","index":2,"n_rows":31,"n_cols":3,"rows_kept":31,"cut":false,"hidden":false,"merged":[[13,0,13,1],[12,0,12,1],[9,0,9,1],[25,0,25,1],[26,0,26,1],[20,0,20,2],[16,0,16,2],[0,0,0,2],[1,0,1,2],[15,0,15,2],[2,0,2,1],[11,0,11,1],[8,0,8,1],[7,0,7,1],[6,0,6,1],[4,0,4,1],[3,0,3,1],[14,0,14,2],[10,0,10,1],[5,0,5,1]]}
["Decreto del Mipaaf n. 00413219 del 08/08/2023 - PNRR - M2C1 - INVESTIMENTO 2.3\nSottomisura \"AMMODERNAMENTO DEI MACCHINARI AGRICOLI CHE PERMETTANO L’INTRODUZIONE DI TECNICHE DI AGRICOLTURA DI PRECISIONE\"\n\nREGIONE ABRUZZO: Determina DPD 018/744 del 29/12/2023 Bando di Aiuto \"Innovazione e meccanizzazione nel settore agricolo e alimentare\", data di fine procedura 25/12/2025"]
["I - DATI IDENTIFICATI E ANAGRAFICI DEL SOGGETTO PROPONENTE, IN CASO DI DITTA INDIVIDUALE, DEL LEGALE RAPPRESENTANTE PROPONENTE LA DOMANDA DI SOSTEGNO IN CASO DI SOCIETA'\nOggetto: Dichiarazione sostitutiva di certificazione (art. 46 e 47 D.P.R.28 dicembre 2000 n. 445)."]
["Il sottoscritto (Cognome Nome)"]
["Luogo di nascita (Nazione, Provincia di Nascita, Comune di nascita)"]
["Data di nascita (gg/mm/aaaa)",null,"2000-01-01"]
["Genere"]
["Residente a (Nazione, Provincia, Comune, Via, n. civico)"]
["Codice fiscale / Partita IVA"]
["In qualità di (Titolare/Legale rappresentante)"]
["Forma di Impresa/Associazione/Cooperativa"]
["Forma giuridica"]
["Recapiti (PEC e numero di telefono)"]
["Referente di progetto, se diverso da Titolare/legale rappresentante"]
["Recapiti del Referente di progetto, se diverso da Titolare/legale rappresentante (PEC e Numero di telefono)"]
["Consapevole che chiunque rilascia dichiarazioni mendaci è punito ai sensi del codice penale e delle leggi speciali in materia, ai sensi e per gli effetti dell'art. 46 del D.P.R. n. 445/2000,"]
["DICHIARA CHE "]
["IL PROGETTO NON ARRECA DANNI ALL'AMBIENTE"]
[1,"RISPETTO ELEMENTI DI CONTROLLO EX-ANTE del PRINCIPIO DNSH (Come da Allegato 8 del Bando)"]
["A","% DI SPESA DESTINATA AL TAGGING AMBIENTE E CLIMA (valore da calcolare sul totale delgli Investimenti)"]
["B","% DI SPESA DESTINATA AL TAGGING DIGITALE (valore da calcolare sul totale delgli Investimenti)"]
["IL PROGETTO -È/NON È- STATO OGGETTO DI ALTRI FINANZIAMENTI"]
[1,"Se sì, specificare con quale fondo/legge"]
[2,"Se sì, specificare l'importo finanziato"]
[3,"Se sì, specificare l'anno di finanziamento"]
[]
["Data",null,"2041-01-01"]
["Luogo"]
[]
[null,"IL TECNICO ABILITATO","IL LEGALE RAPPRESENTANTE"]
[null,"(Timbro e firma digitale)","(Timbro e firma digitale)"]
[null,"_________________________________","_________________________________"]

{"sheet":"ANAGRAFICA AZ.LE","index":3,"n_rows":24,"n_cols":2,"rows_kept":24,"cut":false,"hidden":false,"merged":[[1,0,1,1],[0,0,0,1]]}
[{"$f":"'LEGALE RAPPRESENTANTE'!A1","v":"Decreto del Mipaaf n. 00413219 del 08/08/2023 - PNRR - M2C1 - INVESTIMENTO 2.3\nSottomisura \"AMMODERNAMENTO DEI MACCHINARI AGRICOLI CHE PERMETTANO L’INTRODUZIONE DI TECNICHE DI AGRICOLTURA DI PRECISIONE\"\n\nREGIONE ABRUZZO: Determina DPD 018/744 del 29/12/2023 Bando di Aiuto \"Innovazione e meccanizzazione nel settore agricolo e alimentare\", data di fine procedura 25/12/2025"}]
["II - SCHEDA ANAGRAFICA DEL SOGGETTO RICHIEDENTE"]
["Ragione sociale o Denominazione"]
["CUAA"]
["CCIAA/Num. REA"]
["Codice ATECO"]
["Anno di Iscrizione CCIAA"]
["REGIME IVA (Indicare regime IVA in vigore dal 1 gennaio 2023)"]
["Data primo insediamento (inserire solo in caso di giovane agricoltore)"]
["Indicazione dell’attività prevalente (inserire codice ATECO)"]
["Iscrizione INPS (anno, posizione)"]
["Forma giuridica"]
["Dimensione di Impresa (REG. (UE) 2022/2472) Allegato I "]
["Numero di Occupati (ULA), riferimento al 31/12/ 2023"]
["Valore del Fatturato, riferimento al 31/12/ 2023"]
["Valore Residuo Immobilizzazioni Materiali (Macchinari e attrezzature) come da Libro Cespiti, aggiornato al 31/12/ 2023"]
["Numero soci lavoratori"]
["Recapito PEC Soggetto richiedente"]
["Sede legale Soggetto richiedente"]
["Sede Operativa Soggetto richiedente"]
["Referente del Progetto"]
["PEC del referente del progetto"]
["Numero cellulare del referente del progetto"]
["Localizzazione degli Investimenti: indicare l'area aziendale (COMUNE, FOGLIO, QUALIFICAZIONE DELLA ZONA) dove verranno realizzati gli investimenti oggetto della Domanda di Sostegno. (Specificare se tale area rientra  in aree soggette ai vincoli di cui agli articoli 71 (designate conformemente all’articolo 32 del Reg. (UE) 1305/2013))","COMUNE DI: ………….FOGLIO…………….ZONA………………."]

{"sheet":"QUADRO ECONOMICO","index":4,"n_rows":26,"n_cols":4,"rows_kept":26,"cut":false,"hidden":false,"merged":[[0,0,0,3],[1,0,1,3],[15,0,15,3],[3,0,3,3],[7,0,9,0],[4,0,6,0],[10,0,12,0],[25,0,25,1],[23,0,23,1],[19,0,19,3],[14,0,14,1],[18,0,18,1],[24,0,24,1]]}
[{"$f":"'LEGALE RAPPRESENTANTE'!A1","v":"Decreto del Mipaaf n. 00413219 del 08/08/2023 - PNRR - M2C1 - INVESTIMENTO 2.3\nSottomisura \"AMMODERNAMENTO DEI MACCHINARI AGRICOLI CHE PERMETTANO L’INTRODUZIONE DI TECNICHE DI AGRICOLTURA DI PRECISIONE\"\n\nREGIONE ABRUZZO: Determina DPD 018/744 del 29/12/2023 Bando di Aiuto \"Innovazione e meccanizzazione nel settore agricolo e alimentare\", data di fine procedura 25/12/2025"}]
["QUADRO ECONOMICO: Interventi finanziabili"]
["Tipologia di Intervento: Intestimenti finanziabili","Descrizione investimento","Valore imponibile\n(€)","Giustificazione del fabbisogno"]
["A) Supporto all'investimento in macchine e atrezzature per l'agricoltura di precisione "]
["a1) Macchine,motrici e operatrici,dispositivi e macchine di supporto"]
[]
[]
["a2) Macchine ed attrezzature di precisione per ridurre l'utilizzo dei fitofarmaci ed ottimizzare l'utilizzo dei fertilizzanti,per migliorare la sostenibilità dei processi produttivi e proteggere l'ambiente"]
[]
[]
["a3) Macchine ed attrezzature dedicate al settore zootecnico caratterizzate da un elevato livello tecnologico e di atomazione;macchine utensili e impianti per la realizzazione di prodotti mediante la trasformazione dei materiali e delle materie prime;sistemi di monitoraggio in process per assicurare e tracciare la qualità del prodotto o del processo produttivo"]
[]
[]
["Spese Generali"]
["Totale",null,{"$f":"SUM(C5:C14)","v":0}]
["B) Sostituzione di veicoli fuoristrada per agricoltura e zootecnia"]
["Veicoli dotati di motore elettrico o a biometano"]
["Spese Generali"]
["Totale ",null,{"$f":"SUM(C17:C18)","v":0}]
["c) Supporto all'investimento per l'innovazione dei sistemi di irrigazione e gestione delle acque"]
["beni materiali funzionali alla trasformazione tecnologica e digitale delle imprese secondo il modello \"Industria 4.0\""]
["beni immateriali come (software,sistemi e system integration,piattaforme e applicazioni) connessi a investimenti in beni materiali \"Industria 4.0\""]
["Spese Generali"]
["Totale spese di Investimento",null,{"$f":"SUM(C21:C23)","v":0}]
["Totale a) + b) + c)",null,{"$f":"C15+C19+C24","v":0}]
["Altri investimenti non ricompresi nelle tipologie di cui alle lettere a, b e c"]

{"sheet":"ELEGGIBILITA' DELLA SPESA","index":5,"n_rows":9,"n_cols":7,"rows_kept":9,"cut":false,"hidden":false,"merged":[[0,0,0,6],[1,0,1,6]]}
[{"$f":"'LEGALE RAPPRESENTANTE'!A1","v":"Decreto del Mipaaf n. 00413219 del 08/08/2023 - PNRR - M2C1 - INVESTIMENTO 2.3\nSottomisura \"AMMODERNAMENTO DEI MACCHINARI AGRICOLI CHE PERMETTANO L’INTRODUZIONE DI TECNICHE DI AGRICOLTURA DI PRECISIONE\"\n\nREGIONE ABRUZZO: Determina DPD 018/744 del 29/12/2023 Bando di Aiuto \"Innovazione e meccanizzazione nel settore agricolo e alimentare\", data di fine procedura 25/12/2025"}]
["QUADRO SINOTTICO AMMISSIBILITA' DELLA SPESA: ART. 10 DEL BANDO"]
["Tipologia di intervento (categorie esplicitate alla Sezione I del Decreto)","Coerenza della Spesa con le prescrizioni di cui al Foglio Tabella SEZIONE I DEL DM","Costo di Acquisto complessivo","IVA","ART. 10 Bando -                 Documenti di Spesa allegati","Allegati tecnici riferiti ai beni di cui alla colonna B","Ammissibilità della Spesa ai fini del DNSH                            (DICHIARAZIONE TECNICO ABILITATO - ALLEGATO N.  8 valutazione ex-ante)"]
["TOTALE",null,{"$f":"SUM(C5:C9984)","v":80000},{"$f":"SUM(D5:D9984)","v":59}]
["A1. Macchine, motrici e operatrici, dispositivi e macchine di supporto quali, ad esempio, sistemi di sensori in campo, stazioni meteo e APR (droni), strumenti e dispositivi per il carico e lo scarico, la movimentazione, la pesatura e la cernita automatica dei pezzi, dispositivi di sollevamento e manipolazione automatizzati, Automated Guided Vehicles (AGV) e sistemi di convogliamento e movimentazione flessibili, e/o dotati di riconoscimento dei pezzi, che soddisfino almeno uno dei seguenti requisiti:",null,20000,5]
["A2. Macchine ed attrezzature di precisione per ridurre l’utilizzo dei fitofarmaci ed ottimizzare l’utilizzo dei fertilizzanti, per migliorare la sostenibilità dei processi produttivi e proteggere l’ambiente.",null,20000,5]
["C) Supporto all’investimento per l’innovazione dei sistemi di irrigazione e gestione delle acque",null,20000,5]
["A3. Macchine ed attrezzature dedicate al settore zootecnico caratterizzate da un elevato livello tecnologico e di automazione, quali: macchine il cui funzionamento è controllato da sistemi computerizzati o gestito tramite opportuni sensori e azionamenti (es. automazione e digitalizzazione dell’alimentazione animale); macchine utensili e impianti per la realizzazione di prodotti mediante la trasformazione dei materiali e delle materie prime; sistemi di monitoraggio in process per assicurare e tracciare la qualità del prodotto o del processo produttivo e che consentono di qualificare i processi di produzione in maniera documentabile e connessa al sistema informativo di fabbrica. Per tali macchine/attrezzature è necessario il soddisfacimento di almeno uno dei seguenti requisiti:",null,10000,22]
[null,null,10000,22]

{"sheet":"DNSH-TAGGING-INDICATORI","index":6,"n_rows":6,"n_cols":12,"rows_kept":6,"cut":false,"hidden":false,"merged":[[0,0,0,11],[1,0,1,11],[2,6,2,7],[2,8,2,9],[2,10,2,11],[2,2,2,5],[2,1,3,1],[2,0,3,0]]}
[{"$f":"'LEGALE RAPPRESENTANTE'!A1","v":"Decreto del Mipaaf n. 00413219 del 08/08/2023 - PNRR - M2C1 - INVESTIMENTO 2.3\nSottomisura \"AMMODERNAMENTO DEI MACCHINARI AGRICOLI CHE PERMETTANO L’INTRODUZIONE DI TECNICHE DI AGRICOLTURA DI PRECISIONE\"\n\nREGIONE ABRUZZO: Determina DPD 018/744 del 29/12/2023 Bando di Aiuto \"Innovazione e meccanizzazione nel settore agricolo e alimentare\", data di fine procedura 25/12/2025"}]
["QUADRO SINOTTICO AMMISSIBILITA' DELLA SPESA: DNSH, TAGGING E INDICATORI DI PROGETTO"]
["Tipologia di intervento","DNSH\n(Relazione a firma di un tecnico abilitato)","Indicatori",null,null,null,"Target di spesa\n(Avanzamento finanziario)",null,"TAGGING DIGITALE \n(2026)",null,"PRINCIPI GENERALI PNRR\n(2026)"]
[null,null,"RRFCI06 - Imprese supportate nello sviluppo o nell'adozione di prodotti, servizi e processi applicativi digitali (dimensione)","RRFCI06 A) Imprese supportate nello sviluppo di tecnologie e soluzioni digitali","RRFCI06 B) Imprese supportate nell'adozione di soluzioni digitali per trasformare i propri servizi, prodotti o processi","RRFCI09 - Imprese supportate (di cui piccole, anche micro, medie)","2025\n(Valore in euro su totale spesa)","2026\n(Valore in euro su totale spesa)","% di Spesa di investimento per Obiettivo \"digitalizzazione dei mezzi di trasporto\"\n(incidenza in % dell'intervento sul totale investimento)","% di Spesa di investimento per \"Obiettivo digitale Processi di ricerca e innovazione, trasferimento di tecnologie e cooperazione tra imprese\"\nincentrate sull’economia circolare (incidenza in % dell'intervento sul totale investimento)","Occupazione giovanile\n(% su totale)","Occupazione femminile\n(% su totale)"]
[null,null,"MICRO IMPRESA","NO","SI","MICRO IMPRESA"]
[null,null,"PICCOLA IMPRESA","SI","NO","PICCOLA IMPRESA"]

{"sheet":"Elenchi","index":7,"n_rows":13,"n_cols":9,"rows_kept":13,"cut":false,"hidden":true,"merged":[]}
["1. mitigazione del cambiamento climatico","i. una diminuzione del fabbisogno di energia necessaria per condurre i processi di raffinazione per la produzione di olio extravergine di oliva","Tabelle standard dei costi unitari","a) riduzione dell’uso dei prodotti fitosanitari;"]
["2. adattamento al cambiamento climatico","ii. una maggiore produzione di olio a parità di materie prime in ingresso connesso ad un aumento di efficienza del processo estrattivo","Prezzario agricolo regionale - aggiornamento 2022","b) miglioramento della sostenibilità ambientale dell’azienda;"]
["3. uso sostenibile e protezione delle risorse idriche e marine","iii. un minor impatto ambientale dovuto allo smaltimento delle sanse e all'utilizzo di una minore quantità di acqua","Prezzi Informativi delle Opere Edili nella Regione Abruzzo","c) riduzione della perdita di nutrienti, mantenimento e recupero della fertilità dei suoli;"]
["4. transizione verso l’economia circolare, con riferimento anche a riduzione e riciclo dei rifiuti",null,"Tre preventivi","d) riduzione dell’uso dei fertilizzanti;","A1. Macchine, motrici e operatrici, dispositivi e macchine di supporto quali, ad esempio, sistemi di sensori in campo, stazioni meteo e APR (droni), strumenti e dispositivi per il carico e lo scarico, la movimentazione, la pesatura e la cernita automatica dei pezzi, dispositivi di sollevamento e manipolazione automatizzati, Automated Guided Vehicles (AGV) e sistemi di convogliamento e movimentazione flessibili, e/o dotati di riconoscimento dei pezzi, che soddisfino almeno uno dei seguenti requisiti:","A2. Macchine ed attrezzature di precisione per ridurre l’utilizzo dei fitofarmaci ed ottimizzare l’utilizzo dei fertilizzanti, per migliorare la sostenibilità dei processi produttivi e proteggere l’ambiente.","A3. Macchine ed attrezzature dedicate al settore zootecnico caratterizzate da un elevato livello tecnologico e di automazione, quali: macchine il cui funzionamento è controllato da sistemi computerizzati o gestito tramite opportuni sensori e azionamenti (es. automazione e digitalizzazione dell’alimentazione animale); macchine utensili e impianti per la realizzazione di prodotti mediante la trasformazione dei materiali e delle materie prime; sistemi di monitoraggio in process per assicurare e tracciare la qualità del prodotto o del processo produttivo e che consentono di qualificare i processi di produzione in maniera documentabile e connessa al sistema informativo di fabbrica. Per tali macchine/attrezzature è necessario il soddisfacimento di almeno uno dei seguenti requisiti:","B) Sostituzione di veicoli fuoristrada per agricoltura e zootecnia","C) Supporto all’investimento per l’innovazione dei sistemi di irrigazione e gestione delle acque"]
["5. prevenzione e controllo dell’inquinamento",null,"Preventivo unico","e) dimostrazione dell’adesione al sistema Biologico e altre certificazioni di qualità (es. SQNPI);"," i. presenza o compatibilità con un sistema ISOBUS o equivalente con funzionalità task controller;",null," i. presenza di un sistema di interconnessione leggera sia in grado di trasmettere dati in uscita, funzionali, a titolo esemplificativo, a soddisfare i requisiti ulteriori di telemanutenzione e/o telediagnosi e/o controllo in remoto e di monitoraggio continuo delle condizioni di lavoro e dei parametri di processo;"," i. siano dotati di motore elettrico o a biometano. In questo caso i produttori di biocarburanti e biometano gassosi e di biocarburanti devono fornire certificati (prove di sostenibilità) rilasciati da valutatori indipendenti, come disposto dalla direttiva RED II (direttiva (UE) 2018/2001); gli operatori devono acquistare certificati di garanzia di origine commisurati all’uso previsto;"]
["6. protezione della biodiversità e della salute degli ecosistemi",null,null,"f) possesso di certificazioni di processo/prodotto o energetiche;"," ii. presenza di un sistema di interconnessione leggera sia in grado di trasmettere dati in uscita, funzionali, a titolo esemplificativo, a soddisfare i requisiti ulteriori di telemanutenzione e/o telediagnosi e/o controllo in remoto e di monitoraggio continuo delle condizioni di lavoro e dei parametri di processo;",null," ii. presenza di un sistema di monitoraggio continuo delle condizioni di lavoro e dei parametri di processo mediante opportuni set di sensori."," ii. siano destinati ad attività agricole o zootecniche."]
[null,null,null,"g) nessun consumo di suolo;"," iii. presenza di un sistema di guida automatica o semi automatica;"]
[null,null,null,"h) benessere animale e riduzione delle vendite di antimicrobici per gli animali"," iv. presenza di un sistema di telemanutenzione e/o telediagnosi e/o controllo in remoto;"]
[null,null,null,"d’allevamento;"," v. presenza di soluzioni proprietarie per controllo a rateo variabile, controllo sezioni o strategie di guida parallela."]
[null,null,null,"i) risparmio della risorsa idrica e utilizzo di acque reflue;"]
[null,null,null,"j) salvaguardia dell’ambiente acquatico e delle acque potabili;"]
[null,null,null,"k) conservazione della biodiversità e tutela degli ecosistemi;"]
[null,null,null,"l) mitigazione e adattamento ai cambiamenti climatici."]

{"sheet":"TIPOLOGIA DI INTERVENTO-MACCHIN","index":8,"n_rows":4,"n_cols":8,"rows_kept":4,"cut":false,"hidden":false,"merged":[[0,0,0,7],[1,0,1,7]]}
[{"$f":"'LEGALE RAPPRESENTANTE'!A1","v":"Decreto del Mipaaf n. 00413219 del 08/08/2023 - PNRR - M2C1 - INVESTIMENTO 2.3\nSottomisura \"AMMODERNAMENTO DEI MACCHINARI AGRICOLI CHE PERMETTANO L’INTRODUZIONE DI TECNICHE DI AGRICOLTURA DI PRECISIONE\"\n\nREGIONE ABRUZZO: Determina DPD 018/744 del 29/12/2023 Bando di Aiuto \"Innovazione e meccanizzazione nel settore agricolo e alimentare\", data di fine procedura 25/12/2025"}]
["Acqusito di nuovi macchinari per il miglioramento della produzione attraverso la riduzione di consumi e di sprechi"]
["Tipologia di macchinario ammesso a finanziamento\n(Riportare descrizione come da elenco scheda A-TAB. 1)","Acquisto\n/\nSostituzione","Miglioramento obiettivo ambientale\nn. 1","Miglioramento obiettivo ambientale\nn. 1","Miglioramento obiettivo ambientale\nn. 3","Destinazione d’uso prevista","Spesa richiesta\n(Complessiva)","Spesa ammessa a finanziamento\n(Complessiva)"]
["B) Sostituzione di veicoli fuoristrada per agricoltura e zootecnia","Sostituzione","b) miglioramento della sostenibilità ambientale dell’azienda;","a) riduzione dell’uso dei prodotti fitosanitari;",null,null,null,10]

{"sheet":"CRONOPROGRAMMA FISICO-FIN","index":9,"n_rows":12,"n_cols":18,"rows_kept":12,"cut":false,"hidden":false,"merged":[[3,15,4,15],[3,16,4,16],[9,0,10,0],[9,1,10,1],[0,0,0,10],[1,0,1,10],[3,0,4,0],[3,1,4,1],[6,0,7,0],[6,1,7,1]]}
[{"$f":"'LEGALE RAPPRESENTANTE'!A1","v":"Decreto del Mipaaf n. 00413219 del 08/08/2023 - PNRR - M2C1 - INVESTIMENTO 2.3\nSottomisura \"AMMODERNAMENTO DEI MACCHINARI AGRICOLI CHE PERMETTANO L’INTRODUZIONE DI TECNICHE DI AGRICOLTURA DI PRECISIONE\"\n\nREGIONE ABRUZZO: Determina DPD 018/744 del 29/12/2023 Bando di Aiuto \"Innovazione e meccanizzazione nel settore agricolo e alimentare\", data di fine procedura 25/12/2025"}]
["CRONOPROGRAMMA Fisico-Finanziario dell'investimento: Linear Split"]
["TIPOLOGIA DI INTERVENTO","VALORE COMPLESSIVO","Avanzamento","31 agosto 2024 -Selezione domande ammissibili, Comunicazione ai beneficiari","1° quadrimestre\n31/12/2024","2° trimestre\n30/03/2025","3° trimestre\n30/06/2025","4° trimestre\n30/09/2025","Fine lavori\n31/12/2025","Domanda di Pagamento del saldo\n31/12/2025","Erogazione contributo ai Beneficiari 30/06/2026\n"]
[null,null,"Fisico",null,null,null,null,null,null,null,null,null,null,null,null,null,null,"Fisico"]
[null,null,"Finanziario",null,null,null,null,null,null,null,null,null,null,null,null,null,null,"Finanziario"]
["Descrizione fase di attuazione",null,null,null,null,null,null,null,null,null,null,null,null,null,null,"Descrizione fase di attuazione"]
[null,null,"Fisico"]
[null,null,"Finanziario"]
["Descrizione fase di attuazione"]
[null,null,"Fisico"]
[null,null,"Finanziario"]
["Descrizione fase di attuazione"]

{"sheet":"COPERTURA FINANZIARIA","index":10,"n_rows":15,"n_cols":13,"rows_kept":15,"cut":false,"hidden":false,"merged":[[0,0,0,12],[1,0,1,12],[2,0,2,12]]}
[{"$f":"'LEGALE RAPPRESENTANTE'!A1","v":"Decreto del Mipaaf n. 00413219 del 08/08/2023 - PNRR - M2C1 - INVESTIMENTO 2.3\nSottomisura \"AMMODERNAMENTO DEI MACCHINARI AGRICOLI CHE PERMETTANO L’INTRODUZIONE DI TECNICHE DI AGRICOLTURA DI PRECISIONE\"\n\nREGIONE ABRUZZO: Determina DPD 018/744 del 29/12/2023 Bando di Aiuto \"Innovazione e meccanizzazione nel settore agricolo e alimentare\", data di fine procedura 25/12/2025"}]
["Piano finanziario dell'investimento\n(art. 10, co 1, lett. f)"]
[{"$f":"IF(SUM(I6:I10000)>130000,\"Superato tetto massimo concedibile\",IF(SUM(I6:I10000)<30000,\"Soglia minima per progetto non raggiunta\",\"\"))","v":{"$error":"#REF!"}}]
["Tipologia di intervento (inserire il dettaglio del bene acquistato/sostituito)","Quantità","Valore economico Totale","Agevolabile","% Agevolazione","Anno di Acquisto","Data di Inizio ","Data Fine","Importo finanziabile con PNRR - M2C1 - INVESTIMENTO 2.3","Credito di imposta","Altro finanziamento pubblico ","Finanziamento privato","Copertura finanziaria %"]
["TOTALE",null,{"$f":"SUM(C6:C999)","v":35100},null,null,null,null,null,{"$f":"IF(SUM(I6:I10000)>130000,130000,IF(SUM(I6:I10000)<30000,0,SUM(I6:I10000)))","v":{"$error":"#REF!"}},{"$f":"SUM(J6:J999)","v":0},{"$f":"SUM(K6:K999)","v":0},{"$f":"SUM(L6:L999)","v":{"$error":"#REF!"}}]
[null,1,100,"SI",{"$f":"IF(D6=\"SI\", IF('ANAGRAFICA AZ.LE'!#REF! = \"SI\", 0.8, 0.65), 0)","v":{"$error":"#REF!"}},2020,"2020-01-20","2020-01-20",{"$f":"C6*E6","v":{"$error":"#REF!"}},null,null,{"$f":"C6-I6-J6-K6","v":{"$error":"#REF!"}},{"$f":"IF(C6<>0, (K6+L6)/C6, \"\")","v":{"$error":"#REF!"}}]
[null,1,35000,"SI",{"$f":"IF(D7=\"SI\", IF('ANAGRAFICA AZ.LE'!#REF! = \"SI\", 0.8, 0.65), 0)","v":{"$error":"#REF!"}},2024,"2024-07-15","2024-07-15",{"$error":"#REF!"},null,null,{"$f":"C7-I7-J7-K7","v":{"$error":"#REF!"}},{"$f":"IF(C7<>0, (K7+L7)/C7, \"\")","v":{"$error":"#REF!"}}]
[null,null,null,"SI",{"$f":"IF(D8=\"SI\", IF('ANAGRAFICA AZ.LE'!#REF! = \"SI\", 0.8, 0.65), 0)","v":{"$error":"#REF!"}},null,null,null,{"$error":"#REF!"},null,null,{"$error":"#REF!"},""]
[null,null,null,null,{"$f":"IF(D9=\"SI\", IF('ANAGRAFICA AZ.LE'!#REF! = \"SI\", 0.8, 0.65), 0)","v":0},null,null,null,0,null,null,0,""]
[null,null,null,null,{"$f":"IF(D10=\"SI\", IF('ANAGRAFICA AZ.LE'!#REF! = \"SI\", 0.8, 0.65), 0)","v":0},null,null,null,0,null,null,0,""]
[null,null,null,null,{"$f":"IF(D11=\"SI\", IF('ANAGRAFICA AZ.LE'!#REF! = \"SI\", 0.8, 0.65), 0)","v":0},null,null,null,0,null,null,0,""]
[null,null,null,null,{"$f":"IF(D12=\"SI\", IF('ANAGRAFICA AZ.LE'!#REF! = \"SI\", 0.8, 0.65), 0)","v":0},null,null,null,0,null,null,0,""]
[null,null,null,null,{"$f":"IF(D13=\"SI\", IF('ANAGRAFICA AZ.LE'!#REF! = \"SI\", 0.8, 0.65), 0)","v":0},null,null,null,0,null,null,0,""]
[null,null,null,null,{"$f":"IF(D14=\"SI\", IF('ANAGRAFICA AZ.LE'!#REF! = \"SI\", 0.8, 0.65), 0)","v":0},null,null,null,0,null,null,0,""]
[null,null,null,null,{"$f":"IF(D15=\"SI\", IF('ANAGRAFICA AZ.LE'!#REF! = \"SI\", 0.8, 0.65), 0)","v":0},null,null,null,{"$f":"C15*E15","v":0},null,null,0,{"$f":"IF(C15<>0, (K15+L15)/C15, \"\")","v":""}]

{"sheet":"CRITERI DI SELEZIONE ART 19","index":11,"n_rows":17,"n_cols":4,"rows_kept":17,"cut":false,"hidden":false,"merged":[[5,1,5,3],[0,0,0,3],[1,0,1,3],[2,1,2,3],[3,1,3,3],[4,1,4,3]]}
[{"$f":"'LEGALE RAPPRESENTANTE'!A1","v":"Decreto del Mipaaf n. 00413219 del 08/08/2023 - PNRR - M2C1 - INVESTIMENTO 2.3\nSottomisura \"AMMODERNAMENTO DEI MACCHINARI AGRICOLI CHE PERMETTANO L’INTRODUZIONE DI TECNICHE DI AGRICOLTURA DI PRECISIONE\"\n\nREGIONE ABRUZZO: Determina DPD 018/744 del 29/12/2023 Bando di Aiuto \"Innovazione e meccanizzazione nel settore agricolo e alimentare\", data di fine procedura 25/12/2025"}]
["ARTICOLO 19: criteri di selezione"]
["Ragione sociale o Denominazione sociale",{"$f":"IF('ANAGRAFICA AZ.LE'!B3<>\"\", 'ANAGRAFICA AZ.LE'!B3, \"\")","v":""}]
["CUAA"]
["Codice ATECO",{"$f":"IF('ANAGRAFICA AZ.LE'!B6<>\"\", 'ANAGRAFICA AZ.LE'!B6, \"\")","v":""}]
["LEGALE RAPPRESENTANTE",{"$f":"IF('LEGALE RAPPRESENTANTE'!C3<>\"\", 'LEGALE RAPPRESENTANTE'!C3, \"\")","v":""}]
["CRITERI DI SELEZIONE","Punteggio dichiarato","Documento allegato comprovante il criterio","Punteggio Ammissibile"]
["Tipologia",{"$f":"SUM(B9:B17)","v":15},"Descrizione allegato",{"$f":"SUM(D9:D17)","v":0}]
["Investimenti realizzati da imprese localizzate in zone soggette ai vincoli di cui agli articoli 71 (designate conformemente all’articolo 32 del Reg. (UE) 1305/2013)"]
["Impresa condotta da giovane agricoltore di età compresa tra i 18 e i 40 anni compiuti e con requisiti di istruzione e competenza attestati da titoli richiamati dall’art. 5, comma 1, lettera c) del DM 660087 del 23/12/2022 *",5]
["Progetti presentati da imprenditrici donne *",5]
["Investimenti finalizzati al miglioramento della sostenibilità ambientale dell’azienda (investimenti di cui alla lettera b) sezione I del DM) attraverso:\n-\triduzione dell’uso di fertilizzanti;\n-\triduzione dell’uso di fitofarmaci;\n-\tmantenimento e recupero della fertilità dei suoli",0]
["Investimenti finalizzati al miglioramento della sostenibilità ambientale attraverso la sostituzione di veicoli con altri meno inquinanti (investimenti di cui alla lettera b) sezione I del DM) ",1]
["Progetti con investimenti per l’innovazione dei sistemi di irrigazione e gestione delle acque (investimenti di cui alla lettera c) sezione I del DM) ",1]
["Investimenti finalizzati al miglioramento del benessere animale e riduzione antimicrobici per gli animali di allevamento (investimenti di cui alla lettera a.3 del DM). ",1]
["Certificazioni di processo/prodotto, o energetiche già in possesso dell’impresa richiedente al momento della presentazione del progetto, diverse rispetto al metodo biologico e al SNQPI",1]
["Aziende in regime di produzione Biologica o che aderiscono al SNQPI",1]

{"sheet":"SEZ INFO- TAB SEZIONE I DEL DM","index":12,"n_rows":22,"n_cols":2,"rows_kept":22,"cut":false,"hidden":false,"merged":[[0,1,2,1]]}
[null,"TIPOLOGIA DI INVESTIMENTO                                                                                                                                                                                                                                                                                                                              M2 C1 I2.3 - INNOVAZIONE E MECCANIZZAZIONE NEL SETTORE AGRICOLO E ALIMENTARE"]
[]
[]
[null,"a)      Supporto all’investimento in macchine e attrezzature per l’agricoltura di precisione"]
[null,"a1. Macchine, motrici e operatrici, dispositivi e macchine di supporto quali, ad esempio, sistemi di sensori in campo, stazioni meteo e APR (droni), strumenti e dispositivi per il carico e lo scarico, la movimentazione, la pesatura e la cernita automatica dei pezzi, dispositivi di sollevamento e manipolazione automatizzati, Automated Guided Vehicles (AGV) e sistemi di convogliamento e movimentazione flessibili, e/o dotati di riconoscimento dei pezzi, che soddisfino almeno uno dei seguenti requisiti:"]
[null,"                                   i.      presenza o compatibilità con un sistema ISOBUS o equivalente con funzionalità task controller;"]
[null,"                                  ii.      presenza di un sistema di interconnessione leggera sia in grado di trasmettere dati in uscita, funzionali, a titolo esemplificativo, a soddisfare i requisiti ulteriori di telemanutenzione e/o telediagnosi e/o controllo in remoto e di monitoraggio continuo delle condizioni di lavoro e dei parametri di processo;"]
[null,"                                 iii.      presenza di un sistema di guida automatica o semi automatica;"]
[null,"                                 iv.      presenza di un sistema di telemanutenzione e/o telediagnosi e/o controllo in remoto;"]
[null,"                                  v.      presenza di soluzioni proprietarie per controllo a rateo variabile, controllo sezioni o strategie di guida parallela."]
[null,"a2. Macchine ed attrezzature di precisione per ridurre l’utilizzo dei fitofarmaci ed ottimizzare l’utilizzo dei fertilizzanti, per migliorare la sostenibilità dei processi produttivi e proteggere l’ambiente."]
[null,"a3. Macchine ed attrezzature dedicate al settore zootecnico caratterizzate da un elevato livello tecnologico e di automazione, quali: macchine il cui funzionamento è controllato da sistemi computerizzati o gestito tramite opportuni sensori e azionamenti (es. automazione e digitalizzazione dell’alimentazione animale); macchine utensili e impianti per la realizzazione di prodotti mediante la trasformazione dei materiali e delle materie prime; sistemi di monitoraggio in process per assicurare e tracciare la qualità del prodotto o del processo produttivo e che consentono di qualificare i processi di produzione in maniera documentabile e connessa al sistema informativo di fabbrica. Per tali macchine/attrezzature è necessario il soddisfacimento di almeno uno dei seguenti requisiti:"]
[null,"                                 i.        presenza di un sistema di interconnessione leggera sia in grado di trasmettere dati in uscita, funzionali, a titolo esemplificativo, a soddisfare i requisiti ulteriori di telemanutenzione e/o telediagnosi e/o controllo in remoto e di monitoraggio continuo delle condizioni di lavoro e dei parametri di processo;"]
[null,"                                ii.        presenza di un sistema di monitoraggio continuo delle condizioni di lavoro e dei parametri di processo mediante opportuni set di sensori."]
[null,"Qualora le macchine riportate nel punto a) siano dotate di motore, questo deve essere elettrico o a biometano. Si precisa che il punto a) non riguarda i veicoli fuoristrada."]
[null,"b)      Sostituzione di veicoli fuoristrada per agricoltura e zootecnia"]
[null,"Veicoli rientranti nel campo di applicazione del Regolamento (UE) 167/2013 (Prescrizioni in materia di omologazione e vigilanza del mercato dei veicoli agricoli e forestali) che soddisfino entrambi i seguenti requisiti:"]
[null,"                         i.        siano dotati di motore elettrico o a biometano. In questo caso i produttori di biocarburanti e biometano gassosi e di biocarburanti devono fornire certificati (prove di sostenibilità) rilasciati da valutatori indipendenti, come disposto dalla direttiva RED II (direttiva (UE) 2018/2001); gli operatori devono acquistare certificati di garanzia di origine commisurati all’uso previsto;"]
[null,"                        ii.        siano destinati ad attività agricole o zootecniche."]
[null,"L’acquisto dei veicoli sopra indicati è autorizzato solo in caso di sostituzione di veicoli più inquinanti, al fine di rispettare il principio “non arrecare un danno significativo”. Pertanto, la domanda di sostegno dovrà identificare in maniera univoca il veicolo sostituito."]
[null,"c)      Supporto all’investimento per l’innovazione dei sistemi di irrigazione e gestione delle acque"]
[null,"Sistemi di gestione intelligente dell’irrigazione attraverso remote sensing (ad es. dati satellitari Sentinel 2) e/o proximal sensing (ad es., dati da drone, da sensori o da centraline a terra) per la misura delle variabili meteorologiche, dell’umidità e caratteristiche del suolo e della coltura e utilizzo di sistemi di supporto alle decisioni (DSS) per la stima dei fabbisogni irrigui delle colture e la gestione irrigua di precisione, che consentano di stabilire le strategie migliori per ottimizzare la resa e minimizzare l’uso di risorse idriche anche collegati a sistemi di informazione in tempo reale su smartphone o di gestione automatizzata dei sistemi irrigui (es. tecnologie di irrigazione a pioggia a rateo variabile). In questo ambito i beni finanziabili finalizzati all’implementazione di smart technologies per l’irrigazione e la gestione delle acque nelle aziende agricole possono essere individuati nell’ambito di beni materiali e/o immateriali di cui agli Allegati A e B alla Legge n. 232 del 2016 (Beni funzionali alla trasformazione tecnologica e digitale delle imprese secondo il modello “Industria 4.0”)."]

{"sheet":"Problemi tecnici Windows 11","index":13,"n_rows":4,"n_cols":1,"rows_kept":4,"cut":false,"hidden":false,"merged":[]}
["Su Windows 11 è necessario abilitare le macro seguendo la procedura seguente:"]
["1- Click destro sul file"]
["2- Seleziono \"Proprietà\""]
["3- Nella voce \"Sicurezza\" in basso, selezionare la casella \"Sblocca\""]